fUST/lending_fUST_20251022
["ID","MTS","AMOUNT","RATE_DAILY","PERIOD"]
[392011191,1761091846800,-166.0,0.00029485,7]
[392011192,1761091846810,-167.0,0.00029485,7]
[392011193,1761091846819,-166.0,0.00029485,7]
[392011194,1761091846828,-500.0,0.00029509,15]
[392011195,1761091846837,-200.0,0.0002951,7]
[392011196,1761091846847,-860.0,0.00029518,2]
[392011197,1761091846856,-1052.12,0.00029522,2]
[392011198,1761091846866,-83117.28032618,0.0002956,2]
[392011199,1761091846877,-199.0,0.00029589,14]
[392011200,1761091846887,-1052.12,0.00029696,2]
[392011201,1761091846897,-3000.0,0.00029712,5]
[392011202,1761091846907,-500.0,0.00029725,7]
[392011203,1761091846917,-173.1469216,0.00029748,30]
[392011204,1761091846926,-589.8769586,0.00029748,30]
[392011205,1761091846936,-166.25220516,0.00029748,30]
[392011206,1761091862434,3426.19007052,0.0002399,2]
[392011207,1761091862520,1573.80992948,0.0002399,2]
[392011209,1761091876420,150.0,0.00019134,2]
[392011210,1761091876861,150.0,0.00020045,2]
[392011211,1761091877256,150.0,0.00020956,2]
[392011212,1761091877712,185.72,0.00021867,2]
[392011213,1761091878120,232.15,0.00022778,2]
[392011214,1761091878509,278.58,0.00023689,2]
[392011215,1761091885961,5000.0,0.0002399,2]
[392011216,1761091908902,2279.75007052,0.0002399,2]
[392011217,1761091908994,2720.24992948,0.0002399,2]
[392011221,1761091931275,2143.02114517,0.0002399,2]
[392011223,1761091950131,150.0,0.00019278,2]
[392011224,1761091950564,150.0,0.00020196,2]
[392011225,1761091950998,150.0,0.00021114,2]
[392011226,1761091951391,150.0,0.00022032,2]
[392011227,1761091951814,159.2,0.0002295,2]
[392011228,1761091952269,191.04,0.00023868,2]
[392011229,1761091964734,196.0,0.000157,2]
[392011230,1761091964853,196.0,0.000158,2]
[392011231,1761091965130,196.0,0.000159,2]
[392011232,1761091965236,196.0,0.00016,2]
[392011233,1761091965355,196.0,0.000161,2]
[392011234,1761091965453,196.0,0.000162,2]
[392011235,1761091965549,196.0,0.000163,2]
[392011236,1761091965642,196.0,0.000164,2]
[392011237,1761091965751,196.0,0.000165,2]
[392011238,1761091965835,196.0,0.000166,2]
[392011239,1761091965933,196.0,0.000167,2]
[392011240,1761091966028,196.0,0.000168,2]
[392011241,1761091966115,196.0,0.000169,2]
[392011242,1761091966207,196.0,0.00017,2]
[392011243,1761091966298,196.0,0.000171,2]
[392011244,1761091966384,196.0,0.000172,2]
[392011245,1761091966462,196.0,0.000173,2]
[392011246,1761091966582,196.0,0.000174,2]
[392011247,1761091966681,196.0,0.000175,2]
[392011248,1761091966762,196.0,0.000176,2]
[392011249,1761091966845,196.0,0.000177,2]
[392011250,1761091966935,70.49892535,0.000178,2]
[392011251,1761091967015,125.50107465,0.000178,2]
[392011252,1761091967100,196.0,0.000179,2]
[392011253,1761091967180,196.0,0.00018,2]
[392011254,1761091967272,348.96362266,0.000181,2]
[392011255,1761092013881,300.0,0.000181,2]
[392011256,1761092021710,150.0,0.00019238,2]
[392011257,1761092022226,150.0,0.00020154,2]
[392011258,1761092022634,150.0,0.0002107,2]
[392011259,1761092023119,150.0,0.00021986,2]
[392011260,1761092023533,150.0,0.00022902,2]
[392011261,1761092024183,300.0,0.000181,2]
[392011262,1761092034786,300.0,0.000181,2]
[392011263,1761092045202,300.0,0.000181,2]
[392011264,1761092050040,300.0,0.000181,2]
[392011265,1761092060122,300.0,0.000181,2]
[392011266,1761092070148,300.0,0.000181,2]
[392011267,1761092074407,300.0,0.000181,2]
[392011268,1761092080654,196.0,0.000157,2]
[392011269,1761092080755,196.0,0.0001594,2]
[392011270,1761092080854,196.0,0.0001618,2]
[392011271,1761092080962,196.0,0.0001642,2]
[392011272,1761092081056,196.0,0.0001666,2]
[392011273,1761092081145,196.0,0.000169,2]
[392011274,1761092081239,196.0,0.0001714,2]
[392011275,1761092081357,196.0,0.0001738,2]
[392011276,1761092081448,196.0,0.0001762,2]
[392011277,1761092081535,196.0,0.0001786,2]
[392011278,1761092081622,340.84818113,0.000181,2]
[392011279,1761092081897,195.24216983,0.000181,2]
[392011281,1761092081980,104.75783017,0.000181,2]
[392011282,1761092084780,300.0,0.000181,2]
[392011283,1761092091802,150.0,0.00019231,2]
[392011284,1761092092225,150.0,0.00020147,2]
[392011285,1761092092649,150.0,0.00021063,2]
[392011286,1761092093081,150.0,0.00021978,2]
[392011287,1761092093543,150.0,0.00022894,2]
[392011288,1761092107063,250.0,0.00022059,2]
[392011289,1761092162071,150.0,0.00019158,2]
[392011290,1761092162514,150.0,0.0002007,2]
[392011291,1761092162951,150.0,0.00020983,2]
[392011292,1761092163380,150.0,0.00021895,2]
[392011293,1761092163810,150.0,0.00022807,2]
[392011294,1761092200783,196.0,0.000157,2]
[392011295,1761092200884,196.0,0.00015833,2]
[392011296,1761092200994,196.0,0.00015967,2]
[392011297,1761092201091,196.0,0.000161,2]
[392011298,1761092201182,196.0,0.00016233,2]
[392011299,1761092201288,196.0,0.00016367,2]
[392011300,1761092201384,196.0,0.000165,2]
[392011301,1761092201469,196.0,0.00016633,2]
[392011302,1761092201565,196.0,0.00016767,2]
[392011303,1761092201655,196.0,0.000169,2]
[392011304,1761092201751,196.0,0.00017033,2]
[392011305,1761092201843,196.0,0.00017167,2]
[392011306,1761092201938,196.0,0.000173,2]
[392011307,1761092202034,196.0,0.00017433,2]
[392011308,1761092202158,196.0,0.00017567,2]
[392011309,1761092202259,196.0,0.000177,2]
[392011310,1761092202358,196.0,0.00017833,2]
[392011311,1761092202448,196.0,0.00017967,2]
[392011312,1761092202536,371.71525192,0.000181,2]
[392011313,1761092230824,150.0,0.00019185,2]
[392011314,1761092231249,150.0,0.00020099,2]
[392011315,1761092231668,150.0,0.00021013,2]
[392011316,1761092232094,150.0,0.00021926,2]
[392011317,1761092232518,150.0,0.0002284,2]
[392011318,1761092298331,150.0,0.00019176,2]
[392011319,1761092299333,150.0,0.00020089,2]
[392011320,1761092299821,150.0,0.00021003,2]
[392011321,1761092462906,4618.068,0.00023937,2]
[392011326,1761092551662,417.15472785,0.0003,120]
[392011332,1761092750123,383.0,0.00034972,30]
[392011336,1761092921823,-343.14391209,0.00023999,2]
[392011387,1761093031803,-355.52724272,0.00024071,2]
[392011389,1761093031815,-12.5990445,0.00024071,2]
[392011391,1761093031825,-1527.03274897,0.00024142,2]
[392011417,1761093037700,-345.0,0.00024142,2]
[392011418,1761093037711,-1486.14923619,0.00024142,2]
[392011419,1761093037720,-434.38901892,0.00025071,2]
[392011420,1761093037729,-4001.47710633,0.00025616,2]
[392011421,1761093037751,-203.52289367,0.00025616,2]
[392011422,1761093037762,-300.0,0.0002577,2]
[392011423,1761093037772,-632.0,0.00025771,2]
[392011425,1761093037781,-983.0,0.00025771,2]
[392011426,1761093037791,-2164.0,0.00025771,2]
[392011427,1761093037801,-427.0,0.00025771,2]
[392011428,1761093037811,-396.11663137,0.00025771,2]
[392011429,1761093037823,-32.56136863,0.00025771,2]
[392011430,1761093037833,-500.65175062,0.00026071,2]
[392011431,1761093037843,-3020.0054972,0.00026105,10]
[392011446,1761093042985,-13.49823584,0.00026105,10]
[392011447,1761093042998,-1740.51626696,0.00026105,10]
[392011448,1761093043008,-500.0,0.00026114,2]
[392011449,1761093043019,-161.6353191,0.00026114,2]
[392011450,1761093043028,-500.0,0.00026114,2]
[392011451,1761093043037,-500.0,0.00026114,2]
[392011452,1761093043047,-500.0,0.00026114,2]
[392011453,1761093043056,-500.0,0.00026114,2]
[392011454,1761093043065,-500.0,0.00026114,2]
[392011455,1761093043075,-500.0,0.00026114,2]
[392011456,1761093043085,-465.90374963,0.00026114,2]
[392011457,1761093043094,-500.0,0.00026114,2]
[392011458,1761093043103,-500.0,0.00026114,2]
[392011460,1761093043115,-500.0,0.00026114,2]
[392011462,1761093043129,-500.0,0.00026114,2]
[392011464,1761093043139,-382.6977769,0.00026114,2]
[392011466,1761093043148,-500.0,0.00026114,2]
[392011468,1761093043158,-361.79162913,0.00026114,2]
[392011470,1761093043170,-500.0,0.00026114,2]
[392011473,1761093043180,-204.91922347,0.00026114,2]
[392011475,1761093043190,-500.0,0.00026114,2]
[392011477,1761093043200,-500.0,0.00026114,2]
[392011479,1761093043210,-500.0,0.00026114,2]
[392011480,1761093043221,-500.0,0.00026114,2]
[392011481,1761093043230,-500.0,0.00026114,2]
[392011482,1761093043240,-500.0,0.00026114,2]
[392011483,1761093043250,-500.0,0.00026114,2]
[392011484,1761093043259,-40682.53603481,0.00026115,2]
[392011485,1761093043271,-8447.74037198,0.00026115,2]
[392011486,1761093043282,-36782.24589601,0.00026115,2]
[392011487,1761093043291,-234.9177046,0.00026124,2]
[392011488,1761093043303,-183.78198749,0.00026124,2]
[392011489,1761093043315,-41123.2632148,0.00026125,30]
[392011490,1761093043331,-497.68100651,0.00026115,10]
[392011491,1761093043345,-3480.66899349,0.00026115,10]
[392011492,1761093043355,-53876.7367852,0.00026125,30]
[392011493,1761093043364,-417.15472785,0.00026125,30]
[392011494,1761093043375,-21254.38,0.000262,7]
[392011495,1761093043384,-181.0,0.00027,7]
[392011496,1761093043394,-155.0,0.00027,7]
[392011497,1761093043404,-566.91448232,0.00027071,2]
[392011498,1761093043414,-300.0,0.00027105,30]
[392011499,1761093043424,-300.0,0.00027105,30]
[392011500,1761093043434,-300.0,0.00027105,30]
[392011501,1761093043445,-300.0,0.00027105,30]
[392011502,1761093043454,-300.0,0.00027105,30]
[392011503,1761093043465,-300.0,0.00027105,30]
[392011504,1761093043481,-300.0,0.00027105,30]
[392011505,1761093043491,-300.0,0.00027105,30]
[392011506,1761093043511,-300.0,0.00027105,30]
[392011507,1761093043522,-300.0,0.00027105,30]
[392011508,1761093043532,-300.0,0.00027105,30]
[392011509,1761093043542,-300.0,0.00027105,30]
[392011510,1761093043552,-300.0,0.00027105,30]
[392011511,1761093043562,-300.0,0.00027105,30]
[392011512,1761093043571,-300.0,0.00027105,30]
[392011513,1761093043580,-276.16019578,0.00027397,30]
[392011514,1761093043590,-568.678,0.00027479,16]
[392011515,1761093043601,-1047.31947,0.00027504,2]
[392011516,1761093043611,-600.0,0.00027646,30]
[392011517,1761093043621,-21254.38,0.000278,7]
[392011518,1761093043631,-420.0,0.00027895,2]
[392011519,1761093043641,-1047.31947,0.00027978,2]
[392011520,1761093043651,-633.17721402,0.00028071,2]
[392011521,1761093043660,-423.6247534,0.00028105,30]
[392011522,1761093043671,-589.8769586,0.00028105,30]
[392011523,1761093043681,-589.8769586,0.00028105,30]
[392011524,1761093043692,-1047.31947,0.00028452,2]
[392011525,1761093043703,-2164.0,0.00028771,2]
[392011526,1761093043713,-411.0,0.00028771,2]
[392011527,1761093043723,-411.0,0.00028771,2]
[392011528,1761093043734,-160.0,0.00028885,2]
[392011529,1761093043743,-403.05172659,0.00028885,2]
[392011530,1761093043752,-417.15472785,0.00028885,2]
[392011531,1761093043762,-160.0,0.00028885,2]
[392011532,1761093043771,-160.0,0.00028925,2]
[392011533,1761093043780,-1047.31947,0.00028926,2]
[392011534,1761093043789,-589.8769586,0.00028927,30]
[392011535,1761093043799,-589.8769586,0.00028927,30]
[392011536,1761093043808,-589.8769586,0.00028927,30]
[392011537,1761093043818,-589.8769586,0.00028927,30]
[392011538,1761093043827,-589.8769586,0.00028927,30]
[392011539,1761093043837,-1052.12,0.00029,2]
[392011540,1761093043847,-699.43994572,0.00029071,2]
[392011541,1761093043857,-1052.12,0.00029174,2]
[392011542,1761093043866,-21254.38,0.000292,7]
[392011543,1761093043877,-42956.2611514,0.00029268,2]
[392011544,1761093043887,-500.0,0.00029273,5]
[392011545,1761093043896,-42956.2611514,0.00029279,2]
[392011546,1761093043906,-844.3246683,0.00029282,2]
[392011547,1761093043915,-199.0,0.00029288,7]
[392011548,1761093043925,-11151.6220458,0.00029289,2]
[392011549,1761093043934,-175.0,0.00029312,7]
[392011550,1761093043943,-289.418358,0.00029312,7]
[392011551,1761093043953,-179.32110426,0.00029312,7]
[392011552,1761093043963,-167.0,0.00029312,7]
[392011553,1761093043972,-299.21390515,0.00029312,7]
[392011554,1761093043982,-167.0,0.00029312,7]
[392011555,1761093043991,-330.0,0.00029312,7]
[392011556,1761093044000,-330.0,0.00029312,7]
[392011557,1761093044010,-330.0,0.00029312,7]
[392011558,1761093044019,-330.0,0.00029312,7]
[392011559,1761093044029,-330.0,0.00029312,7]
[392011560,1761093044039,-330.0,0.00029312,7]
[392011561,1761093044049,-267.89579574,0.00029312,7]
[392011562,1761093044058,-330.0,0.00029312,7]
[392011563,1761093044068,-330.0,0.00029312,7]
[392011564,1761093044078,-330.0,0.00029312,7]
[392011565,1761093044088,-330.0,0.00029312,7]
[392011566,1761093044099,-1052.12,0.00029348,2]
[392011567,1761093044112,-160.0,0.00029355,3]
[392011568,1761093044126,-1047.31947,0.000294,2]
[392011569,1761093044135,-260.0,0.00029473,2]
[392011570,1761093044144,-199.0,0.00029562,8]
[392011571,1761093044154,-160.0,0.00029689,4]
[392011572,1761093044164,-153.65056194,0.00029743,7]
[392011573,1761093044174,-1000.0,0.00029821,5]
[392011574,1761093044184,-199.0,0.00029836,9]
[392011575,1761093044194,-823.69405689,0.000299,5]
[392011576,1761093044203,-200.0,0.0002991,7]
[392011577,1761093044215,-155.23,0.00029925,2]
[392011578,1761093044225,-155.23,0.00029925,2]
[392011579,1761093044234,-128868.783454,0.00029926,2]
[392011580,1761093044246,-500.0,0.00029946,15]
[392011581,1761093044255,-110214.62224316,0.00029956,2]
[392011585,1761093045994,-7834.5191881,0.00029956,2]
[392011586,1761093046006,-10306.35313181,0.00029956,2]
[392011609,1761093310655,194.72792766,0.00034972,30]
[392011612,1761093435500,-300.0,0.0002657,30]
[392011613,1761093435523,-300.0,0.0002657,30]
[392011614,1761093435545,-300.0,0.0002657,30]
[392011615,1761093435566,-300.0,0.0002657,30]
[392011616,1761093435588,-300.0,0.0002657,30]
[392011617,1761093435609,-300.0,0.0002657,30]
[392011618,1761093435629,-300.0,0.0002657,30]
[392011619,1761093435650,-300.0,0.0002657,30]
[392011620,1761093435670,-300.0,0.0002657,30]
[392011621,1761093435691,-300.0,0.0002657,30]
[392011622,1761093435711,-300.0,0.0002657,30]
[392011623,1761093435733,-300.0,0.0002657,30]
[392011624,1761093435753,-300.0,0.0002657,30]
[392011625,1761093435775,-300.0,0.0002657,30]
[392011626,1761093435798,-300.0,0.0002657,30]
[392011627,1761093435818,-600.0,0.000271,30]
[392011628,1761093449228,-720.0,0.0002981,30]
[392011629,1761093449254,-214.306832,0.00029956,30]
[392011630,1761093449274,-152.85868253,0.0003,60]
[392011631,1761093449295,-795.28319842,0.0003,30]
[392011632,1761093449315,-785.81490251,0.0003,60]
[392011633,1761093449334,-1090.77883946,0.0003,30]
[392011634,1761093460352,300.0,0.00026197,30]
[392011635,1761093460825,300.0,0.00026197,30]
[392011636,1761093461289,300.0,0.00026197,30]
[392011637,1761093461743,300.0,0.00026197,30]
[392011638,1761093462210,300.0,0.00026197,30]
[392011639,1761093462672,300.0,0.00026197,30]
[392011640,1761093463156,300.0,0.00026197,30]
[392011641,1761093463641,300.0,0.00026197,30]
[392011642,1761093464117,300.0,0.00026197,30]
[392011643,1761093464587,300.0,0.00026197,30]
[392011644,1761093465080,300.0,0.00026197,30]
[392011645,1761093465543,300.0,0.00026197,30]
[392011646,1761093466015,300.0,0.00026197,30]
[392011647,1761093466486,300.0,0.00026197,30]
[392011648,1761093467029,300.0,0.00026197,30]
[392011649,1761093467732,600.0,0.00027101,30]
[392011650,1761093468189,720.0,0.00029811,30]
[392011651,1761093509095,300.0,0.00026439,30]
[392011652,1761093509554,300.0,0.00026439,30]
[392011653,1761093510034,300.0,0.00026439,30]
[392011654,1761093510495,300.0,0.00026439,30]
[392011655,1761093510965,300.0,0.00026439,30]
[392011656,1761093511426,300.0,0.00026439,30]
[392011657,1761093511883,300.0,0.00026439,30]
[392011658,1761093512355,300.0,0.00026439,30]
[392011659,1761093512929,300.0,0.00026439,30]
[392011660,1761093513389,300.0,0.00026439,30]
[392011661,1761093513853,300.0,0.00026439,30]
[392011662,1761093514323,300.0,0.00026439,30]
[392011663,1761093514850,300.0,0.00026439,30]
[392011664,1761093515392,300.0,0.00026439,30]
[392011665,1761093515867,300.0,0.00026439,30]
[392011666,1761093516572,600.0,0.00027435,30]
[392011667,1761093557064,300.0,0.00026439,30]
[392011668,1761093557564,300.0,0.00026439,30]
[392011669,1761093558032,300.0,0.00026439,30]
[392011670,1761093558503,300.0,0.00026439,30]
[392011671,1761093558978,300.0,0.00026439,30]
[392011672,1761093559464,300.0,0.00026439,30]
[392011673,1761093559927,300.0,0.00026439,30]
[392011674,1761093560389,300.0,0.00026439,30]
[392011675,1761093560872,300.0,0.00026439,30]
[392011676,1761093561342,300.0,0.00026439,30]
[392011677,1761093561805,300.0,0.00026439,30]
[392011678,1761093562268,300.0,0.00026439,30]
[392011679,1761093562724,300.0,0.00026439,30]
[392011680,1761093563193,300.0,0.00026439,30]
[392011681,1761093563675,300.0,0.00026439,30]
[392011682,1761093564409,600.0,0.0002657,30]
[392011683,1761093606588,300.0,0.00026439,30]
[392011684,1761093607051,300.0,0.00026439,30]
[392011685,1761093607513,300.0,0.00026439,30]
[392011686,1761093607984,300.0,0.00026439,30]
[392011687,1761093608445,300.0,0.00026439,30]
[392011688,1761093608923,300.0,0.00026439,30]
[392011689,1761093609400,300.0,0.00026439,30]
[392011690,1761093609857,300.0,0.00026439,30]
[392011691,1761093610320,300.0,0.00026439,30]
[392011692,1761093610774,300.0,0.00026439,30]
[392011693,1761093611273,300.0,0.00026439,30]
[392011694,1761093611737,300.0,0.00026439,30]
[392011695,1761093612197,300.0,0.00026439,30]
[392011696,1761093612666,300.0,0.00026439,30]
[392011697,1761093613156,300.0,0.00026439,30]
[392011698,1761093613845,600.0,0.0002657,30]
[392011699,1761093664975,600.0,0.00026529,30]
[392011705,1761093690619,198.172249,0.00030137,120]
[392011706,1761093709674,417.15472785,0.00028,30]
[392011707,1761093741251,17763.5585688,0.00028,30]
[392011708,1761093766409,403.05172659,0.00028,30]
[392011710,1761093843068,159.0,0.00028,33]
[392011711,1761093856075,160.0,0.00028,30]
[392011718,1761093872302,160.0,0.00028,30]
[392011724,1761093899242,338.75394371,0.00034959,30]
[392011731,1761093967324,1099.188091,0.00013699,2]
[392011732,1761093967533,1099.188091,0.00020187,2]
[392011749,1761094002663,160.0,0.000301,120]
[392011752,1761094003659,160.0,0.000301,120]
[392011753,1761094006484,160.0,0.000301,120]
[392011757,1761094026544,160.0,0.00028,30]
[392011766,1761094182562,170.6,0.000239,2]
[392011769,1761094206489,160.0,0.000239,2]
[392011819,1761094231971,-1101.3622005,0.0002441,2]
[392011866,1761094237855,-3898.6377995,0.0002441,2]
[392011868,1761094237865,-317.84344293,0.00024476,2]
[392011869,1761094237875,-165.80127716,0.00024542,6]
[392011870,1761094237886,-334.19872284,0.00024542,6]
[392011871,1761094237896,-500.0,0.00024542,6]
[392011872,1761094237906,-500.0,0.00024542,6]
[392011873,1761094237915,-500.0,0.00024542,6]
[392011874,1761094237924,-500.0,0.00024542,6]
[392011875,1761094237934,-500.0,0.00024542,6]
[392011876,1761094237945,-723.62032317,0.00024657,2]
[392011877,1761094237956,-476.37967683,0.00024657,2]
[392011878,1761094237965,-170.0,0.00024657,2]
[392011879,1761094237974,-216.74032317,0.00024657,2]
[392011880,1761094237985,-83.25967683,0.00024657,2]
[392011881,1761094237995,-1200.0,0.00024657,2]
[392011882,1761094238005,-1432.1276152,0.00024754,2]
[392011883,1761094238015,-7303.37964727,0.00024853,2]
[392011963,1761094243086,-686.19604006,0.00024853,2]
[392011964,1761094243096,-500.0,0.00024854,2]
[392011965,1761094243106,-500.0,0.00024854,2]
[392011966,1761094243115,-500.0,0.00024854,2]
[392011967,1761094243125,-244.99102483,0.00024854,2]
[392011968,1761094243134,-500.0,0.00024854,2]
[392011969,1761094243144,-500.0,0.00024854,2]
[392011970,1761094243153,-500.0,0.00024854,2]
[392011971,1761094243162,-500.0,0.00024854,2]
[392011972,1761094243172,-500.0,0.00024854,2]
[392011973,1761094243182,-500.0,0.00024854,2]
[392011974,1761094243193,-500.0,0.00024854,2]
[392011975,1761094243202,-36.90535208,0.00024854,2]
[392011983,1761094246074,-274.47105316,0.00024854,2]
[392011984,1761094246084,-500.0,0.00024854,2]
[392011985,1761094246093,-500.0,0.00024854,2]
[392011986,1761094246103,-500.0,0.00024854,2]
[392011987,1761094246112,-500.0,0.00024854,2]
[392011988,1761094246121,-500.0,0.00024854,2]
[392011989,1761094246129,-500.0,0.00024854,2]
[392011990,1761094246138,-500.0,0.00024854,2]
[392011991,1761094246147,-500.0,0.00024854,2]
[392011992,1761094246156,-500.0,0.00024854,2]
[392011993,1761094246165,-500.0,0.00024854,2]
[392011994,1761094246175,-500.0,0.00024854,2]
[392011995,1761094246184,-500.0,0.00024854,2]
[392011996,1761094246195,-500.0,0.00024854,2]
[392011997,1761094246204,-500.0,0.00024854,2]
[392011998,1761094246213,-71.8395496,0.00024854,2]
[392011999,1761094246225,-428.1604504,0.00024854,2]
[392012000,1761094246234,-500.0,0.00024854,2]
[392012001,1761094246243,-500.0,0.00024854,2]
[392012002,1761094246251,-500.0,0.00024854,2]
[392012003,1761094246261,-500.0,0.00024854,2]
[392012004,1761094246270,-500.0,0.00024854,2]
[392012005,1761094246279,-258.62877454,0.00024854,2]
[392012006,1761094246290,-241.37122546,0.00024854,2]
[392012007,1761094246299,-500.0,0.00024854,2]
[392012008,1761094246308,-500.0,0.00024854,2]
[392012009,1761094246317,-500.0,0.00024854,2]
[392012010,1761094246326,-34.52190787,0.00024854,2]
[392012024,1761094386914,364.2603555,0.00023947,2]
[392012028,1761094472021,700.0,0.00034958,30]
[392012029,1761094474505,254.26083571,0.00034958,30]
[392012059,1761094774348,-300.0,0.0002601,20]
[392012060,1761094774371,-300.0,0.0002601,20]
[392012061,1761094774392,-300.0,0.0002601,20]
[392012062,1761094774415,-300.0,0.0002601,20]
[392012063,1761094774439,-300.0,0.0002601,20]
[392012064,1761094774461,-300.0,0.0002601,20]
[392012065,1761094774482,-300.0,0.0002601,20]
[392012066,1761094774503,-300.0,0.0002601,20]
[392012067,1761094774525,-300.0,0.0002601,20]
[392012068,1761094774545,-300.0,0.0002601,20]
[392012069,1761094774567,-300.0,0.0002601,20]
[392012070,1761094774588,-300.0,0.0002601,20]
[392012071,1761094774608,-300.0,0.0002601,20]
[392012072,1761094774630,-300.0,0.0002601,20]
[392012073,1761094774651,-300.0,0.0002601,20]
[392012075,1761094786526,267.3001457,0.00030136,120]
[392012076,1761094812922,300.0,0.0002535,20]
[392012077,1761094825823,300.0,0.0002535,20]
[392012078,1761094826303,300.0,0.0002535,20]
[392012079,1761094826761,300.0,0.0002535,20]
[392012080,1761094827251,300.0,0.0002535,20]
[392012081,1761094827808,300.0,0.0002535,20]
[392012082,1761094828289,300.0,0.0002535,20]
[392012083,1761094828735,300.0,0.0002535,20]
[392012084,1761094829269,300.0,0.0002535,20]
[392012085,1761094829748,300.0,0.0002535,20]
[392012086,1761094830287,300.0,0.0002535,20]
[392012087,1761094830764,300.0,0.0002535,20]
[392012088,1761094831440,300.0,0.0002535,20]
[392012089,1761094831765,300.0,0.0002535,20]
[392012090,1761094832235,300.0,0.0002535,20]
[392012091,1761094832957,600.0,0.00025351,20]
[392012092,1761094833428,720.0,0.00027886,30]
[392012093,1761094846243,300.0,0.0002535,20]
[392012094,1761094846706,300.0,0.0002535,20]
[392012095,1761094847173,300.0,0.0002535,20]
[392012097,1761094847643,300.0,0.0002535,20]
[392012098,1761094848170,300.0,0.0002535,20]
[392012099,1761094848685,300.0,0.0002535,20]
[392012100,1761094849234,300.0,0.0002535,20]
[392012101,1761094849747,300.0,0.0002535,20]
[392012102,1761094850215,300.0,0.0002535,20]
[392012103,1761094850696,300.0,0.0002535,20]
[392012104,1761094851181,300.0,0.0002535,20]
[392012105,1761094851741,300.0,0.0002535,20]
[392012106,1761094852346,300.0,0.0002535,20]
[392012107,1761094852809,300.0,0.0002535,20]
[392012108,1761094853296,300.0,0.0002535,20]
[392012109,1761094854030,600.0,0.00025351,20]
[392012110,1761094854506,720.0,0.00027886,30]
[392012113,1761094884302,300.0,0.0002535,20]
[392012114,1761094884772,300.0,0.0002535,20]
[392012115,1761094885231,300.0,0.0002535,20]
[392012116,1761094885696,300.0,0.0002535,20]
[392012117,1761094886327,300.0,0.0002535,20]
[392012118,1761094887006,300.0,0.0002535,20]
[392012119,1761094887636,300.0,0.0002535,20]
[392012120,1761094888171,300.0,0.0002535,20]
[392012121,1761094888640,300.0,0.0002535,20]
[392012122,1761094889098,300.0,0.0002535,20]
[392012123,1761094889578,300.0,0.0002535,20]